Cogmind - Beta 16 @@@ ROGUE MODE // 2026.01.04 @ 21:09:10 Player: cromly Result: Destroyed by G-34 Mercenary with Small Laser Performance ------------- Evolutions (1) 500 Regions Visited (3) 600 Robots Destroyed (16) 80 Value Destroyed (526) 526 Prototype IDs (0) 0 Alien Tech Used (0) 0 Bonus (0) 0 TOTAL SCORE: 1706 Bonus ------- None Cogmind --------- Core Integrity 0/400 Matter 212/300 Energy 129/265 System Corruption 0% Temperature Warning (390) Movement Core (300) Ox5 Location -9/Materials Parts ------- > --- POWER (2) -------- Improved Ion Engine > --- PROPULSION (3) --- (None) > --- UTILITY (2) ------ Medium Storage Unit > --- WEAPON (2) ------- Small Laser > --- INVENTORY (10) --- Light Armor Plating Peak State ------------ > --- POWER ------------ Light Ion Engine Improved Ion Engine > --- PROPULSION ------- Light Treads Light Treads Light Treads > --- UTILITY ---------- Medium Storage Unit Medium Matter Pod > --- WEAPON ----------- Beam Cannon Assault Rifle > --- INVENTORY -------- Light Ion Engine Improved Ion Engine Light Treads Aluminum Leg Light Armor Plating Beam Rifle [Rating: 10] Favorites ----------- Power Light Ion Engine Engine Light Ion Engine Power Core Light Nuclear Core Propulsion Light Treads Treads Light Treads Leg Aluminum Leg Utility Medium Matter Pod Storage Medium Matter Pod Protection Weapon Shielding Weapon Assault Rifle Energy Gun Beam Rifle Energy Cannon Beam Cannon Ballistic Gun Assault Rifle Build | -11 -10 -10 -9 ------- Run | Yrd Mat Min Mat Slots Evolved 2 | . . . 2 Power 1 | . . . 1 Propulsion 1 | . . . 1 Utility . | . . . . Weapon . | . . . . Parts Attached 20 | 6 4 6 4 Power 5 | 1 1 2 1 Engine 4 | 1 . 2 1 Core 1 | . 1 . . Reactor . | . . . . Propulsion 6 | 2 . 3 1 Treads 5 | 2 . 3 . Leg 1 | . . . 1 Wheel . | . . . . Hover . | . . . . Flight . | . . . . Utility 4 | 1 3 . . Device . | . . . . Storage 3 | 1 2 . . Processor . | . . . . Hackware . | . . . . Protection 1 | . 1 . . Artifact . | . . . . Weapon 5 | 2 . 1 2 Energy Gun 2 | . . . 2 Energy Cannon 1 | . . 1 . Ballistic Gun 2 | 2 . . . Ballistic Cannon . | . . . . Launcher . | . . . . Special Weapon . | . . . . Impact Weapon . | . . . . Slashing Weapon . | . . . . Piercing Weapon . | . . . . Special Melee Weapon . | . . . . Unidentified Prototypes . | . . . . Parts Lost 15 | . . 3 12 Power 4 | . . 1 3 Propulsion 6 | . . 1 5 Utility 1 | . . . 1 Weapon 4 | . . 1 3 Highest Loss Streak 12 | . . 3 12 To Critical Strikes . | . . . . Average Backups 4 | 1 3 7 4 Power 1 | . 1 2 1 Propulsion . | . . 1 1 Utility 1 | . 1 2 1 Weapon 1 | . 1 . . Tool/Special . | . . . . Unused Backups 3 | . 1 1 1 Power . | . . . . Propulsion . | . . . . Utility 2 | . . 1 1 Weapon 1 | . 1 . . Tool/Special . | . . . . Average Slot Usage (%) 94 | . 95 97 83 Engine 11 | . 13 4 19 Core 2 | . . 9 . Treads 26 | . 28 26 23 Storage 19 | . 16 28 22 Protection 4 | . 8 . . Energy Cannon 2 | . . 4 8 Ballistic Gun 23 | . 28 22 7 Peak Build Rating 10 | 6 9 9 10 Average Rating 7 | 3 6 8 8 On Entrance 6 | . 6 9 9 Avg Prop Armor Cover (%) . | . . . . Naked Turns . | . . . . Heaviest Build 27 | 12 21 24 27 Greatest Support 60 | 40 40 40 60 Greatest Overweight (x) 2 | 1 . . 2 Average Overweight (x) . | . . . . Largest Inventory Capacity 10 | 8 10 10 10 Average Capacity 8 | 7 6 10 10 Most Carried 8 | 6 7 8 7 Average Carried 4 | 1 4 7 4 Final Capacity 10 | 8 10 10 10 Final Carried 8 | 1 7 8 1 Class Distribution -------------------- 93% | Mutant 6% | Scavenger-Mutant Dominant Class ---------------- Mutant | -10/Materials Mutant | -10/Mines Scavenger-Mutant | -9/Materials Resources | -11 -10 -10 -9 ----------- Run | Yrd Mat Min Mat Matter Collected 581 | 188 288 105 . Remotely . | . . . . Salvage Created 579 | . 268 105 206 Parts 35 | . 16 8 11 Haulers Intercepted . | . . . . Recyclers Shooed . | . . . . Parts Field Recycled . | . . . . Retrieved Matter . | . . . . Parts Self-Destructed . | . . . . Prevented . | . . . . Parts Restored . | . . . . Kills | -11 -10 -10 -9 ------- Run | Yrd Mat Min Mat Combat Hostiles Destroyed 14 | . 5 2 7 Guns 10 | . 5 2 3 Cannons 3 | . . . 3 AOE 1 | . . . 1 Classes Destroyed 6 | . 3 1 2 Builder 1 | . 1 . . Watcher 1 | . 1 . . Swarmer 3 | . . . 3 Grunt 8 | . 5 . 3 Duelist 1 | . . . 1 Sentry 2 | . . 2 . Best Kill Streak 5 | . 3 2 5 Combat Bots Only 5 | . 2 2 5 Max Kills in Single Turn 1 | . 1 1 1 Gunslinging . | . . . . Exploded 1 | . . . 1 Melee . | . . . . Uniques/NPCs Destroyed . | . . . . Combat | -11 -10 -10 -9 -------- Run | Yrd Mat Min Mat Hostile Shots Fired 174 | . 51 18 105 Missed 36 | . 11 7 18 Hits 138 | . 40 11 87 Melee 7 | . . . 7 Projectile 131 | . 40 11 80 Critical Strikes 1 | . . . 1 Damage Taken 2040 | . 494 170 1376 Core 564 | . 100 62 402 Absorbed by Shields . | . . . . Redirected to Shielding 37 | . 37 . . Core Remaining (%) 67 | 100 . 35 . Volleys Fired 57 | . 27 8 22 Largest 2 | . 2 2 2 Hottest 116 | . 40 40 116 Shots Fired 101 | . 54 10 37 Gun 84 | . 54 10 20 Cannon 17 | . . . 17 Launcher . | . . . . Special . | . . . . Kinetic 76 | . 54 10 12 Thermal 25 | . . . 25 Explosive . | . . . . Electromagnetic . | . . . . Robot Hit Streak 7 | . 7 7 6 Robot Miss Streak 4 | . 4 1 3 Penetration Max . | . . . . Secondary Targets 2 | . 2 . . Max Gunslinging Chain 1 | . 1 . . Shots Hit Robots 64 | . 31 8 25 Core Hits 27 | . 15 4 8 Critical Kills 1 | . 1 . . Critical Parts Destroyed . | . . . . Critical Strikes 2 | . 1 . 1 Burn 1 | . . . 1 Destroy 1 | . 1 . . Melee Attacks . | . . . . Impact . | . . . . Slashing . | . . . . Piercing . | . . . . Sneak Attacks . | . . . . Combat Hostiles . | . . . . Follow-up Attacks . | . . . . Damage Inflicted 1079 | . 427 112 540 Guns 733 | . 427 112 194 Cannons 193 | . . . 193 Explosions 153 | . . . 153 Melee . | . . . . Ramming . | . . . . Kinetic 659 | . 427 112 120 Thermal 420 | . . . 420 Explosive . | . . . . Electromagnetic . | . . . . Impact . | . . . . Slashing . | . . . . Piercing . | . . . . Highest Corruption . | . . . . Average Corruption . | . . . . Corruption Purged . | . . . . Corruption Blocked . | . . . . Overload Shots . | . . . . Overflow Damage 52 | . . . 52 Projectiles 10 | . . . 10 Explosions 42 | . . . 42 Melee . | . . . . Knockbacks . | . . . . Impact . | . . . . Kinetic . | . . . . Secondary . | . . . . Self-Inflicted Damage 106 | . . . 106 Shots 1 | . . . 1 Rammed . | . . . . Targets Rammed . | . . . . Kicked . | . . . . Crushed . | . . . . Highest Temperature 599 | . 11 4 599 Average Temperature 257 | . 3 3 331 Received Heat Transfer 654 | . 279 45 330 Effects 14 | . . . 14 Shutdowns 4 | . . . 4 Energy Bleed 1 | . . . 1 Matter Decay 2 | . . . 2 Short Circuit 2 | . . . 2 Damage (minor) 2 | . . . 2 Damage (major) 1 | . . . 1 Damage (core) 2 | . . . 2 Siege Activations . | . . . . Martial Activations . | . . . . Shielding Activations . | . . . . Robots Disrupted . | . . . . Combat Hostiles . | . . . . Robots Corrupted . | . . . . Combat Hostiles . | . . . . Parts Fried . | . . . . Impact Corruptions . | . . . . Robots Melted . | . . . . Combat Hostiles . | . . . . Parts Melted . | . . . . Heat Transferred 766 | . . . 766 Parts Sabotaged . | . . . . Parts Stolen . | . . . . Parts Stripped . | . . . . Power Chain Reactions . | . . . . Alert | -11 -10 -10 -9 ------- Run | Yrd Mat Min Mat Maximum Alert Level . | . . . . Low Security (%) 100 | 100 100 100 100 Level 1 . | . . . . Level 2 . | . . . . Level 3 . | . . . . Level 4 . | . . . . Level 5 . | . . . . High Security . | . . . . Max Security . | . . . . Peak Influence 137 | . 95 33 137 Initial 33 | . . 33 . Average 22 | . 21 9 66 Influence Increases 420 | . 158 40 222 Destroy 0b10 Robot/C 280 | . 100 40 140 Destroy 0b10 Robot/NC 10 | . 10 . . Destroy Leader 52 | . 32 . 20 Disable Machine 60 | . 15 . 45 Destroy Structure 18 | . 1 . 17 Influence Decreases 348 | . 72 126 150 Entered New Map 53 | . . 53 . Time Decay 165 | . 72 63 30 Lost Part 130 | . . 10 120 Squads Dispatched 2 | . 2 . . Investigation . | . . . . Extermination . | . . . . Reinforcement 2 | . 2 . . Assault . | . . . . Garrison . | . . . . Intercept . | . . . . Searches Triggered . | . . . . Construction Impeded . | . . . . Haulers Reinforced . | . . . . Active Scanning Responses . | . . . . Cargo Convoy Interrupts . | . . . . Stealth | -11 -10 -10 -9 --------- Run | Yrd Mat Min Mat Distress Signals . | . . . . Communications Jammed . | . . . . Distress Signals . | . . . . Times Spotted 24 | . 13 2 9 Peak Tracking Total 6 | . 5 2 6 Tactical Retreats . | . . . . Traps | -11 -10 -10 -9 ------- Run | Yrd Mat Min Mat Traps Triggered . | . . . . Indirectly . | . . . . Trap Hack Attempts . | . . . . Triggered . | . . . . Disarmed . | . . . . Reprogrammed . | . . . . Reused . | . . . . Traps Extracted . | . . . . Installed . | . . . . Triggered . | . . . . Machines | -11 -10 -10 -9 ---------- Run | Yrd Mat Min Mat Machines Disabled 5 | . 1 1 3 Max in Single Turn 2 | . 1 1 2 Machines Repaired . | . . . . Machines Dismantled . | . . . . Machines Sabotaged . | . . . . Overloaded Fab Kills . | . . . . Hacking | -11 -10 -10 -9 --------- Run | Yrd Mat Min Mat Machines Accessed 2 | . 1 . 1 Terminals 1 | . . . 1 Fabricators . | . . . . Repair Stations . | . . . . Recycling Units 1 | . 1 . . Scanalyzers . | . . . . Garrison Access . | . . . . Total Hacks 4 | . 2 . 2 Successful 3 | . 1 . 2 Failed 1 | . 1 . . Catastrophic . | . . . . Database Lockouts . | . . . . Manual . | . . . . Terminals 2 | . . . 2 Fabricators . | . . . . Repair Stations . | . . . . Recycling Units 2 | . 2 . . Scanalyzers . | . . . . Garrison Access . | . . . . Terminal Hacks 2 | . . . 2 Alert Level 2 | . . . 2 Fabricator Hacks . | . . . . Repair Station Hacks . | . . . . Recycling Unit Hacks 1 | . 1 . . Report Inventory 1 | . 1 . . Scanalyzer . | . . . . Garrison Access Hacks . | . . . . Unauthorized Hacks . | . . . . Terminals . | . . . . Fabricators . | . . . . Repair Stations . | . . . . Recycling Units . | . . . . Scanalyzers . | . . . . Garrison Access . | . . . . Data Cores Recovered . | . . . . Used . | . . . . Hacking Detections 1 | . . . 1 Full Trace Events . | . . . . Feedback Events . | . . . . Feedback Blocked . | . . . . Robot Schematics Acquired . | . . . . Robots Built . | . . . . Authchips . | . . . . Time . | . . . . Total Robot Build Rating . | . . . . Part Schematics Acquired . | . . . . Parts Built . | . . . . Authchips . | . . . . Time . | . . . . Total Part Build Rating . | . . . . Part Studies Acquired . | . . . . Parts Repaired . | . . . . Time . | . . . . Parts Recycled . | . . . . Recycled Matter . | . . . . Retrieved Matter . | . . . . Retrieved Components . | . . . . Parts Scanalyzed . | . . . . Part Schematics Acquired . | . . . . Parts Damaged . | . . . . Bothacking | -11 -10 -10 -9 ------------ Run | Yrd Mat Min Mat Used RIF Installer . | . . . . Robots Hacked . | . . . . Non-combat . | . . . . Combat . | . . . . Robot Hacks Applied . | . . . . Relay Couplers Released . | . . . . Fabnet Peak Effective % . | . . . . Robots Rewired . | . . . . Allies Hacked . | . . . . Hacks Repelled . | . . . . Allies | -11 -10 -10 -9 -------- Run | Yrd Mat Min Mat Total Allies . | . . . . Largest Group . | . . . . Highest-Rated Group . | . . . . Highest-Rated Ally . | . . . . Total Orders . | . . . . Ally Attacks . | . . . . Total Damage . | . . . . Kills . | . . . . Allies Corrupted . | . . . . Allies Melted . | . . . . Intel | -11 -10 -10 -9 ------- Run | Yrd Mat Min Mat Active Infowar (turns) . | . . . . Robot Analysis Total . | . . . . Derelict Logs Recovered 1 | . . 1 . Drone Launches . | . . . . Drone Recoveries . | . . . . Exploration | -11 -10 -10 -9 ------------- Run | Yrd Mat Min Mat Turns Passed 813 | 50 469 197 97 Spaces Moved 394 | 38 234 106 16 Core 21 | 21 . . . Treads 369 | 17 234 106 12 Legs 4 | . . . 4 Wheels . | . . . . Hover . | . . . . Flight . | . . . . Fastest Speed 50 | 50 160 160 160 Average Speed 155 | 100 160 160 185 Slowest Speed 260 | 160 160 160 260 Overloaded Moves . | . . . . Propulsion Burnouts . | . . . . Robots Hopped . | . . . . Potential Cave-ins . | . . . . Cave-ins Triggered . | . . . . Exploration Rate (%) 17 | 5 28 29 6 Regions Visited 3 Branch Regions 1 Pre-discovered Areas . | . . . . Known Exits Taken . | . . . . Unknown Exits Taken 3 | 1 1 1 . Scrap Searched . | . . . . Spaces Dug . | . . . . Terrain Destroyed 16 | . . . 16 Melee . | . . . . Projectile . | . . . . AOE 16 | . . . 16 Terrain Rammed . | . . . . Walls Destroyed . | . . . . Machines Disabled . | . . . . Actions | -11 -10 -10 -9 --------- Run | Yrd Mat Min Mat Total 492 | 49 274 123 46 Wait . | . . . . Move 391 | 37 233 105 16 Hop . | . . . . Pick Up 15 | 6 7 2 . Fast Attach 5 | 1 2 1 1 Attach 14 | 5 . 2 7 Detach . | . . . . Swap 5 | . 2 3 . Drop 5 | . 3 2 . Fire 57 | . 27 8 22 Melee . | . . . . Ram . | . . . . Kick . | . . . . Crush . | . . . . Escape Stasis . | . . . . Rewire . | . . . . Trap . | . . . . Miscellaneous . | . . . . Route ------- -11/Scrapyard -10/Materials -10/Mines -9/Materials History --------- Turn | Location | Event 4 | -11/Scrapyard | Discovered new exit (range 15) 51 | -11/Scrapyard | Entered Materials 316 | -10/Materials | Build established: Mutant 468 | -10/Materials | Discovered new exit (range 16) 520 | -10/Materials | Entered Mines 608 | -10/Mines | Discovered new exit (range 4) 637 | -10/Mines | Core integrity fell below 50% 673 | -10/Mines | Lost 3 parts (1p1n1w) 717 | -10/Mines | Entered Materials 717 | -9/Materials | Evolved 2 slots: Power x1, Propulsion x1 789 | -9/Materials | Core integrity fell below 50% 794 | -9/Materials | Core integrity fell below 20% 814 | -9/Materials | Destroyed by G-34 Mercenary with Small Laser Last Messages --------------- 00799_ K-01 Serf collects debris. 00800_ Beam Rifle broken. 00800_ Overheating: Short circuit. 00803_ Overheating: Matter decay (-32). 00803_ K-01 Serf collects debris. 00803_ U-05 Engineer lays Concrete. 00805_ U-05 Engineer builds a Wall. 00806_ Power failure, Imp. Ion Engine shutdown. 00807_ Broken Beam Rifle destroyed. 00807_ Critical hit (Burn: +37). 00807_ K-01 Serf collects debris. 00809_ Overheating: Energy bleed (-17). 00810_ Lgt. Ion Engine destroyed. 00810_ K-01 Serf collects debris. 00810_ U-05 Engineer lays Concrete. 00811_ Acquired Sml. Laser. 00812_ U-05 Engineer builds a Wall. 00813_ Med. Matter Pod destroyed. 00813_ Aluminum Leg destroyed. 00814_ K-01 Serf collects debris. Map ----- +----------------------------------------------------+ | | | ?????????????????????????????????? | | ?????????????????????????????????? | | ?????????????????????????????????? | | ?????????????????????????????????? | | ?????????????????????????????????? | | ?????????????????????????????????? | | ?????????????????????????????????? | | ?????????????????????????????????? | | ?????????????????????????????????? | | ?????????????????????????????????? | | ?????????????????????????????????? | | ?????????????????????????????????? | | ?????????????????????????????????? | | ????????????????#####????????????? | | ????????????????# #????????????? | | ????????????????# #????????????? | | ????????????????# ##???????????? | | ????????????????# T#???????????? | | ????????????????# ##########???? | | ????????????????# # #???? | | ????????????????# # """"" #???? | | ????????????????# ; " "" #???? | | ????????????????# ;= * #???? | | ????????????????# ; !% #???? | | ????????????????# ;% @ #???? | | ????????????????# ; #???? | | ????????????????# #% #???? | | ????????????????# #= #???? | | ??????????????#"" #;;;;;;;##???? | | ??????????????#"Y # %Y g #??? | | ??????????????#"" # k = #??? | | ??????????????### # #??? | | ????????????????# # "" #??? | | ????????????????# + """"" #??? | | ???????????????? # """"" !#??? | | ??????????????? # """"" #?? | | ?????????????? # "??? ##?? | | ?????????????? ####?????+#??? | | ????????????? ?????????????? | | ????????????# ????????????????? | | ?????????????? ????????????????? | | ?????????????????????????????????? | | ?????????????????????????????????? | | ?????????????????????????????????? | | ?????????????????????????????????? | | ?????????????????????????????????? | | ?????????????????????????????????? | | ?????????????????????????????????? | | ?????????????????????????????????? | +----------------------------------------------------+ Best States ------------- Heat Dissipation 28 Energy Generation 17 Energy Capacity 290 Matter Stores 344 Matter Capacity 400 Sight Range 16 Terrain Scan Density 10 Weapon Shielding 33 Evasion (%) 50 Recoil Reduction 3 Item Schematics ----------------- None Robot Schematics ------------------ None Fabricated ------------ Nothing Repaired ---------- Nothing Studied --------- None Alien Tech Used ----------------- None Achievements -------------- None Challenges ------------ None Game ------ Seed FieldServoFlakker Manual? 0 Play Time 00:12:42 Cumulative 14.3 hours Start 2026.01.03 @ 19:46:54 End 2026.01.04 @ 21:09:10 Sessions 2 Manual Loads 0 Difficulty Rogue Special Mode None Game No. 27 Rogue 27 Adventurer 0 Explorer 0 Win Type - Total 0 Types 0/0/0/0/0/0/0/0/0/0 Lore% 8 Gallery% 15 Achievement% 12 Wizard Run 0 Options --------- Layout 1 ASCII 0 Keyboard 0 Movement Mouse Keybinds 0 Fullscreen 2 Font 48/Smallcaps Map View 50x35 Zoom Use 0% Tactical HUD 1 Map Filters NONE Filters NONE Steam 1 RUN: d91fdf95-5be5-4fd2-84f4-ddf923c34356